fUSD/lending_fUSD_20260606
["ID","MTS","AMOUNT","RATE_DAILY","PERIOD"]
[424268814,1780713032000,-500.0,0.00013425,2]
[424268824,1780713032000,-541.0,0.00013425,2]
[424268816,1780713032000,-500.0,0.00013425,2]
[424268821,1780713032000,-541.0,0.00013425,2]
[424268815,1780713032000,-500.0,0.00013425,2]
[424268825,1780713032000,-541.0,0.00013425,2]
[424268823,1780713032000,-541.0,0.00013425,2]
[424268817,1780713032000,-396.32957951,0.00013425,2]
[424268818,1780713032000,-541.0,0.00013425,2]
[424268762,1780713032000,-500.0,0.00010822,2]
[424268822,1780713032000,-541.0,0.00013425,2]
[424268794,1780713032000,-158.06927802,0.00013425,2]
[424268797,1780713032000,-500.0,0.00013425,2]
[424268819,1780713032000,-541.0,0.00013425,2]
[424268799,1780713032000,-500.0,0.00013425,2]
[424268792,1780713032000,-5944.39338858,0.00013335,2]
[424268765,1780713032000,-1791.71,0.0001103,2]
[424268766,1780713032000,-4869.01877828,0.00011099,2]
[424268763,1780713032000,-250.44445454,0.00010852,2]
[424268761,1780713032000,-1791.71,0.00010779,2]
[424268771,1780713032000,-589.83124165,0.00011454,2]
[424268770,1780713032000,-2000.0,0.00011301,2]
[424268768,1780713032000,-4869.01877824,0.00011099,2]
[424268769,1780713032000,-4869.01877824,0.00011248,2]
[424268767,1780713032000,-4869.01877824,0.00011099,2]
[424268772,1780713032000,-591.67,0.00011507,2]
[424268778,1780713032000,-326.3,0.000123,2]
[424268779,1780713032000,-5000.0,0.000123,2]
[424268785,1780713032000,-168.34,0.00012795,2]
[424268777,1780713032000,-500.0,0.00012274,2]
[424268764,1780713032000,-150.0,0.00010959,2]
[424268780,1780713032000,-650.92888592,0.00012321,2]
[424268774,1780713032000,-500.0,0.00011918,2]
[424268789,1780713032000,-169.65,0.00013218,2]
[424268788,1780713032000,-169.65,0.00013218,2]
[424268787,1780713032000,-352.0701346,0.00013105,2]
[424268791,1780713032000,-1272.36024948,0.00013325,2]
[424268783,1780713032000,-4869.01877824,0.00012465,2]
[424268790,1780713032000,-169.65,0.00013218,2]
[424268775,1780713032000,-382.98015686,0.00011983,2]
[424268782,1780713032000,-2000.0,0.00012329,2]
[424268786,1780713032000,-4869.01877824,0.00013074,2]
[424268776,1780713032000,-1071.8,0.00012055,2]
[424268784,1780713032000,-575.39977062,0.00012571,2]
[424268781,1780713032000,-321.85,0.00012329,2]
[424268773,1780713032000,-4869.01877824,0.00011857,2]
[424268870,1780713033000,-200.0,0.00013699,2]
[424268867,1780713033000,-500.0,0.00013698,2]
[424268866,1780713033000,-366.65230893,0.00013698,2]
[424268865,1780713033000,-500.0,0.00013698,2]
[424268863,1780713033000,-500.0,0.00013698,2]
[424268855,1780713033000,-4869.01877824,0.00013683,2]
[424268859,1780713033000,-638.25290804,0.00013698,2]
[424268864,1780713033000,-502.80068804,0.00013698,2]
[424268862,1780713033000,-500.0,0.00013698,2]
[424268856,1780713033000,-543.79028611,0.00013698,2]
[424268875,1780713033000,-500.0,0.00013918,2]
[424268861,1780713033000,-515.79051281,0.00013698,2]
[424268857,1780713033000,-500.0,0.00013698,2]
[424268869,1780713033000,-500.0,0.00013698,2]
[424268871,1780713033000,-166.66,0.00013699,2]
[424268873,1780713033000,-843.47,0.000137,2]
[424268879,1780713033000,-250.0,0.00014,2]
[424268868,1780713033000,-500.0,0.00013698,2]
[424268878,1780713033000,-494.12,0.00013983,2]
[424268874,1780713033000,-166.66,0.00013836,2]
[424268872,1780713033000,-632.53844444,0.00013699,2]
[424268876,1780713033000,-166.66,0.00013973,2]
[424268881,1780713033000,-1272.36024948,0.00014113,2]
[424268880,1780713033000,-166.66,0.0001411,2]
[424268882,1780713033000,-500.0,0.00014117,2]
[424268883,1780713033000,-5944.39338858,0.00014117,2]
[424268860,1780713033000,-500.0,0.00013698,2]
[424268877,1780713033000,-763.25,0.00013983,2]
[424268858,1780713033000,-201.61838733,0.00013698,2]
[424268837,1780713033000,-541.0,0.00013425,2]
[424268851,1780713033000,-160.88134904,0.00013488,2]
[424268828,1780713033000,-541.0,0.00013425,2]
[424268838,1780713033000,-541.0,0.00013425,2]
[424268840,1780713033000,-541.0,0.00013425,2]
[424268836,1780713033000,-541.0,0.00013425,2]
[424268832,1780713033000,-541.0,0.00013425,2]
[424268833,1780713033000,-541.0,0.00013425,2]
[424268827,1780713033000,-541.0,0.00013425,2]
[424268885,1780713033000,-166.66,0.00014247,2]
[424268829,1780713033000,-541.0,0.00013425,2]
[424268830,1780713033000,-541.0,0.00013425,2]
[424268834,1780713033000,-541.0,0.00013425,2]
[424268839,1780713033000,-541.0,0.00013425,2]
[424268831,1780713033000,-541.0,0.00013425,2]
[424268835,1780713033000,-541.0,0.00013425,2]
[424268845,1780713033000,-177.75383222,0.00013425,2]
[424268848,1780713033000,-151.41923818,0.00013488,2]
[424268842,1780713033000,-154.06705566,0.00013425,2]
[424268844,1780713033000,-150.0,0.00013425,2]
[424268850,1780713033000,-150.0,0.00013488,2]
[424268849,1780713033000,-171.7075852,0.00013488,2]
[424268843,1780713033000,-150.0,0.00013425,2]
[424268846,1780713033000,-151.5407187,0.00013488,2]
[424268826,1780713033000,-541.0,0.00013425,2]
[424268852,1780713033000,-1500.0,0.00013617,2]
[424268853,1780713033000,-250.0,0.00013617,2]
[424268847,1780713033000,-150.0,0.00013488,2]
[424268841,1780713033000,-542.25939025,0.00013425,2]
[424268854,1780713033000,-137136.6233012,0.00013648,2]
[424268889,1780713033000,-463.42,0.0001434,2]
[424268921,1780713033000,-500.0,0.00014999,2]
[424268884,1780713033000,-1555.5,0.00014165,2]
[424268923,1780713033000,-500.0,0.00014999,2]
[424268925,1780713033000,-250.0,0.00014999,2]
[424268924,1780713033000,-500.0,0.00014999,2]
[424268919,1780713033000,-500.0,0.00014999,2]
[424268915,1780713033000,-500.0,0.00014999,2]
[424268922,1780713033000,-500.0,0.00014999,2]
[424268927,1780713033000,-500.0,0.00014999,2]
[424268930,1780713033000,-500.0,0.00014999,2]
[424268929,1780713033000,-500.0,0.00014999,2]
[424268931,1780713033000,-500.0,0.00014999,2]
[424268926,1780713033000,-500.0,0.00014999,2]
[424268933,1780713033000,-500.0,0.00014999,2]
[424268928,1780713033000,-500.0,0.00014999,2]
[424268932,1780713033000,-500.0,0.00014999,2]
[424268934,1780713033000,-500.0,0.00014999,2]
[424268935,1780713033000,-500.0,0.00014999,2]
[424268936,1780713033000,-500.0,0.00014999,2]
[424268944,1780713033000,-500.0,0.00014999,2]
[424268937,1780713033000,-500.0,0.00014999,2]
[424268938,1780713033000,-500.0,0.00014999,2]
[424268943,1780713033000,-500.0,0.00014999,2]
[424268945,1780713033000,-500.0,0.00014999,2]
[424268940,1780713033000,-500.0,0.00014999,2]
[424268941,1780713033000,-500.0,0.00014999,2]
[424268942,1780713033000,-500.0,0.00014999,2]
[424268946,1780713033000,-500.0,0.00014999,2]
[424268888,1780713033000,-552.89,0.00014319,2]
[424268920,1780713033000,-500.0,0.00014999,2]
[424268917,1780713033000,-500.0,0.00014999,2]
[424268939,1780713033000,-500.0,0.00014999,2]
[424268918,1780713033000,-500.0,0.00014999,2]
[424268886,1780713033000,-350.0,0.00014281,2]
[424268916,1780713033000,-500.0,0.00014999,2]
[424268890,1780713033000,-239.17,0.0001434,2]
[424268893,1780713033000,-166.66,0.00014384,2]
[424268891,1780713033000,-368.59,0.0001435,2]
[424268892,1780713033000,-350.0,0.00014377,2]
[424268898,1780713033000,-1006.08,0.000146,3]
[424268895,1780713033000,-350.0,0.00014393,2]
[424268899,1780713033000,-1613.0535,0.00014713,2]
[424268894,1780713033000,-350.0,0.00014386,2]
[424268901,1780713033000,-231.01520189,0.000149,2]
[424268900,1780713033000,-350.0,0.0001474,2]
[424268896,1780713033000,-350.0,0.00014555,2]
[424268887,1780713033000,-4869.01877824,0.00014291,2]
[424268897,1780713033000,-350.0,0.00014567,2]
[424268902,1780713033000,-4869.01877824,0.000149,2]
[424268914,1780713033000,-500.0,0.00014999,2]
[424268911,1780713033000,-500.0,0.00014999,2]
[424268912,1780713033000,-500.0,0.00014999,2]
[424268905,1780713033000,-3042.90848229,0.000149,2]
[424268906,1780713033000,-11258.18430869,0.000149,2]
[424268909,1780713033000,-151.0,0.00014997,2]
[424268910,1780713033000,-10000.0,0.00014999,2]
[424268904,1780713033000,-5944.39338858,0.000149,2]
[424268908,1780713033000,-186.4017571,0.00014986,2]
[424268913,1780713033000,-500.0,0.00014999,2]
[424268903,1780713033000,-1272.36024948,0.000149,2]
[424268907,1780713033000,-157.15619754,0.00014986,2]
[424268955,1780713034000,-500.0,0.00014999,2]
[424268958,1780713034000,-500.0,0.00014999,2]
[424268974,1780713034000,-500.0,0.00014999,2]
[424268963,1780713034000,-500.0,0.00014999,2]
[424268967,1780713034000,-500.0,0.00014999,2]
[424268970,1780713034000,-500.0,0.00014999,2]
[424268973,1780713034000,-500.0,0.00014999,2]
[424268956,1780713034000,-500.0,0.00014999,2]
[424268965,1780713034000,-500.0,0.00014999,2]
[424268966,1780713034000,-500.0,0.00014999,2]
[424268954,1780713034000,-500.0,0.00014999,2]
[424268961,1780713034000,-500.0,0.00014999,2]
[424268960,1780713034000,-500.0,0.00014999,2]
[424268959,1780713034000,-500.0,0.00014999,2]
[424268962,1780713034000,-500.0,0.00014999,2]
[424268950,1780713034000,-500.0,0.00014999,2]
[424268957,1780713034000,-500.0,0.00014999,2]
[424268952,1780713034000,-500.0,0.00014999,2]
[424268951,1780713034000,-500.0,0.00014999,2]
[424268949,1780713034000,-500.0,0.00014999,2]
[424268947,1780713034000,-500.0,0.00014999,2]
[424268968,1780713034000,-500.0,0.00014999,2]
[424268953,1780713034000,-500.0,0.00014999,2]
[424268969,1780713034000,-500.0,0.00014999,2]
[424268948,1780713034000,-500.0,0.00014999,2]
[424268971,1780713034000,-500.0,0.00014999,2]
[424268994,1780713034000,-3091.33817095,0.00015,2]
[424268995,1780713034000,-6100.7,0.00015,2]
[424268997,1780713034000,-17057.45233446,0.00015,2]
[424268996,1780713034000,-1024.94913309,0.00015,2]
[424268992,1780713034000,-153.43930433,0.0001499,2]
[424268981,1780713034000,-500.0,0.00014999,2]
[424268993,1780713034000,-40229.39803937,0.00015,2]
[424268990,1780713034000,-795.40771029,0.00015,2]
[424268980,1780713034000,-500.0,0.00014999,2]
[424268986,1780713034000,-8098.65518294,0.00015,2]
[424268985,1780713034000,-2513.65311835,0.00015,14]
[424268987,1780713034000,-43866.73414351,0.00015,2]
[424268972,1780713034000,-500.0,0.00014999,2]
[424268976,1780713034000,-500.0,0.00014999,2]
[424268982,1780713034000,-37709.88374595,0.00015,2]
[424268991,1780713034000,-2738.79182097,0.00015,2]
[424268978,1780713034000,-500.0,0.00014999,2]
[424268984,1780713034000,-2080.4563166,0.00015,2]
[424268977,1780713034000,-500.0,0.00014999,2]
[424268988,1780713034000,-170734.0929106,0.00015,2]
[424268979,1780713034000,-500.0,0.00014999,2]
[424268989,1780713034000,-503.82121105,0.00010369,2]
[424268983,1780713034000,-17415.14524457,0.00015,2]
[424268964,1780713034000,-500.0,0.00014999,2]
[424268975,1780713034000,-500.0,0.00014999,2]
[424269004,1780713038000,-2303.44018967,0.00015,2]
[424268998,1780713038000,-189.0,8.299e-05,2]
[424269003,1780713038000,-3470.00000002,0.00015,2]
[424269001,1780713038000,-1859.1,0.00015,2]
[424268999,1780713038000,-249.61918951,0.0001411,2]
[424269000,1780713038000,-2649.13081049,0.00015,2]
[424269005,1780713038000,-450.0,0.00015,2]
[424269002,1780713038000,-449.99999999,0.00015,2]
[424269014,1780713040000,-2362.95,0.00015,2]
[424269015,1780713040000,-638.3195,0.00015,2]
[424269017,1780713041000,-2653.91571635,0.00015,2]
[424269056,1780713044000,-532.05881603,9.085e-05,2]
[424269061,1780713046000,-1948.32316134,9.085e-05,2]
[424269060,1780713046000,-2096.08546639,9.085e-05,2]
[424269066,1780713046000,-14765.91325515,0.00011099,2]
[424269069,1780713046000,-311.80133828,0.00015,2]
[424269067,1780713046000,-650076.62151908,0.00015,2]
[424269068,1780713046000,-500.0,0.00015,2]
[424269062,1780713046000,-2214.94788622,9.085e-05,2]
[424269070,1780713046000,-1148.61238259,0.00015,2]
[424269059,1780713046000,-173.0595929,9.085e-05,2]
[424269064,1780713046000,-14765.91325518,0.00011099,2]
[424269083,1780713058000,1000.0,0.00030137,120]
[424269084,1780713084000,228.58,0.00030137,120]
[424269085,1780713085000,1000.0,0.00030137,120]
[424269091,1780713608000,214.56,0.00030082,120]
[424269103,1780713701000,5000.0,0.0003013,120]
[424269109,1780713912000,-394.34076418,0.00010737,2]
[424269108,1780713912000,-153.28053934,0.000107,2]
[424269107,1780713912000,-252.37869648,0.0001065,2]
[424269110,1780713916000,-105.65923582,0.00010737,2]
[424269111,1780713941000,-694.34076418,0.00010746,2]
[424269190,1780713953000,-800.0,0.00010746,2]
[424269198,1780714084000,3000.0,0.00030137,120]
[424269215,1780714141000,2000.0,0.00030136,120]
[424269218,1780714178000,200.0,0.00030137,120]
[424269251,1780714232000,-500.0,0.00010899,2]
[424269243,1780714232000,-500.0,0.00010899,2]
[424269248,1780714232000,-500.0,0.00010899,2]
[424269250,1780714232000,-500.0,0.00010899,2]
[424269252,1780714232000,-500.0,0.00010899,2]
[424269244,1780714232000,-500.0,0.00010899,2]
[424269255,1780714232000,-500.0,0.00010899,2]
[424269264,1780714232000,-500.0,0.00010899,2]
[424269261,1780714232000,-500.0,0.00010899,2]
[424269254,1780714232000,-500.0,0.00010899,2]
[424269258,1780714232000,-500.0,0.00010899,2]
[424269249,1780714232000,-500.0,0.00010899,2]
[424269266,1780714232000,-500.0,0.00010899,2]
[424269268,1780714232000,-500.0,0.00010899,2]
[424269270,1780714232000,-500.0,0.00010899,2]
[424269272,1780714232000,-500.0,0.00010899,2]
[424269259,1780714232000,-500.0,0.00010899,2]
[424269245,1780714232000,-500.0,0.00010899,2]
[424269239,1780714232000,-500.0,0.00010899,2]
[424269247,1780714232000,-500.0,0.00010899,2]
[424269280,1780714232000,-500.0,0.00010899,2]
[424269226,1780714232000,-881.80625,0.00010162,2]
[424269229,1780714232000,-247.33112256,0.00010356,2]
[424269228,1780714232000,-1477.96,0.00010286,2]
[424269227,1780714232000,-1118.19375,0.00010162,2]
[424269231,1780714232000,-294.89,0.00010478,2]
[424269230,1780714232000,-463.496855,0.00010425,2]
[424269234,1780714232000,-153.28053933,0.00010645,2]
[424269237,1780714232000,-1600.0,0.000108,3]
[424269232,1780714232000,-198.39831818,0.00010589,2]
[424269235,1780714232000,-1000.0,0.000107,3]
[424269233,1780714232000,-500.0,0.000106,3]
[424269238,1780714232000,-250.0,0.00010822,2]
[424269236,1780714232000,-66.77923582,0.00010746,2]
[424269240,1780714232000,-500.0,0.00010899,2]
[424269242,1780714232000,-500.0,0.00010899,2]
[424269241,1780714232000,-500.0,0.00010899,2]
[424269246,1780714232000,-500.0,0.00010899,2]
[424269274,1780714232000,-500.0,0.00010899,2]
[424269294,1780714232000,-500.0,0.00010899,2]
[424269285,1780714232000,-500.0,0.00010899,2]
[424269303,1780714232000,-500.0,0.00010899,2]
[424269299,1780714232000,-500.0,0.00010899,2]
[424269309,1780714232000,-500.0,0.00010899,2]
[424269302,1780714232000,-500.0,0.00010899,2]
[424269306,1780714232000,-500.0,0.00010899,2]
[424269300,1780714232000,-440.02361759,0.00010899,2]
[424269305,1780714232000,-500.0,0.00010899,2]
[424269308,1780714232000,-500.0,0.00010899,2]
[424269307,1780714232000,-500.0,0.00010899,2]
[424269310,1780714232000,-500.0,0.00010899,2]
[424269312,1780714232000,-500.0,0.00010899,2]
[424269313,1780714232000,-550.0,0.00010899,2]
[424269314,1780714232000,-500.0,0.00010899,2]
[424269317,1780714232000,-2100.0,0.000109,3]
[424269316,1780714232000,-500.0,0.00010899,2]
[424269315,1780714232000,-500.0,0.00010899,2]
[424269304,1780714232000,-500.0,0.00010899,2]
[424269298,1780714232000,-500.0,0.00010899,2]
[424269301,1780714232000,-500.0,0.00010899,2]
[424269291,1780714232000,-500.0,0.00010899,2]
[424269311,1780714232000,-500.0,0.00010899,2]
[424269284,1780714232000,-500.0,0.00010899,2]
[424269283,1780714232000,-500.0,0.00010899,2]
[424269276,1780714232000,-500.0,0.00010899,2]
[424269277,1780714232000,-500.0,0.00010899,2]
[424269279,1780714232000,-500.0,0.00010899,2]
[424269278,1780714232000,-500.0,0.00010899,2]
[424269286,1780714232000,-500.0,0.00010899,2]
[424269290,1780714232000,-500.0,0.00010899,2]
[424269282,1780714232000,-500.0,0.00010899,2]
[424269281,1780714232000,-500.0,0.00010899,2]
[424269297,1780714232000,-500.0,0.00010899,2]
[424269289,1780714232000,-500.0,0.00010899,2]
[424269288,1780714232000,-500.0,0.00010899,2]
[424269296,1780714232000,-500.0,0.00010899,2]
[424269292,1780714232000,-500.0,0.00010899,2]
[424269295,1780714232000,-500.0,0.00010899,2]
[424269293,1780714232000,-500.0,0.00010899,2]
[424269287,1780714232000,-500.0,0.00010899,2]
[424269334,1780714233000,-14734.86,0.00011044,2]
[424269323,1780714233000,-500.0,0.00011042,2]
[424269329,1780714233000,-500.0,0.00011042,2]
[424269327,1780714233000,-500.0,0.00011042,2]
[424269330,1780714233000,-500.0,0.00011042,2]
[424269326,1780714233000,-500.0,0.00011042,2]
[424269328,1780714233000,-500.0,0.00011042,2]
[424269333,1780714233000,-300.0,0.00011043,2]
[424269335,1780714233000,-4414.172,0.00011089,2]
[424269331,1780714233000,-577.19391133,0.00011042,2]
[424269325,1780714233000,-437.21095854,0.00011042,2]
[424269322,1780714233000,-500.0,0.00011042,2]
[424269321,1780714233000,-283.53765383,0.00011042,2]
[424269318,1780714233000,-250.0,0.00010927,2]
[424269319,1780714233000,-500.0,0.00010999,2]
[424269320,1780714233000,-428.65,0.00011008,2]
[424269332,1780714233000,-522.9470374,0.00011043,2]
[424269324,1780714233000,-263.44225134,0.00011042,2]
[424269339,1780714233000,-150.99,0.00011141,2]
[424269336,1780714233000,-238.471,0.00011089,2]
[424269337,1780714233000,-150.0,0.0001114,2]
[424269353,1780714233000,-112857.65359585,0.000114,2]
[424269354,1780714233000,-13902.88144825,0.000114,2]
[424269355,1780714233000,-1517.18400879,0.000114,2]
[424269351,1780714233000,-29876.27316093,0.000114,2]
[424269348,1780714233000,-328.20866117,0.0001139,2]
[424269350,1780714233000,-250.0,0.00011399,2]
[424269349,1780714233000,-1024.96605997,0.00011399,3]
[424269352,1780714233000,-83467.36868057,0.000114,2]
[424269346,1780714233000,-2500.0,0.000113,2]
[424269343,1780714233000,-4000.0,0.000113,2]
[424269341,1780714233000,-215.80795776,0.00011202,2]
[424269344,1780714233000,-20161.25263103,0.000113,2]
[424269342,1780714233000,-150.0,0.00011235,2]
[424269345,1780714233000,-6590.23087145,0.000113,2]
[424269340,1780714233000,-4363.59,0.00011141,2]
[424269338,1780714233000,-9999.99,0.00011141,2]
[424269347,1780714233000,-175.0,0.0001137,2]
[424269364,1780714238000,-326.69281068,0.000114,2]
[424269361,1780714238000,-705.39,0.000114,2]
[424269360,1780714238000,-1410.0,0.000114,2]
[424269362,1780714238000,-942.62744777,0.000114,2]
[424269366,1780714238000,-9503.54,0.000114,2]
[424269363,1780714238000,-2111.665,0.000114,2]
[424269367,1780714238000,-2148.77700831,0.000114,2]
[424269369,1780714238000,-2851.21217869,0.000114,2]
[424269368,1780714238000,-265.712551,0.000114,2]
[424269370,1780714238000,-4584.6488091,0.000114,2]
[424269371,1780714238000,-764.8018764,0.000114,2]
[424269372,1780714238000,-7060.92014268,0.000114,2]
[424269365,1780714238000,-2560.5904227,0.000114,2]
[424269390,1780714240000,-166.66,0.00011752,2]
[424269396,1780714240000,-166.66,0.0001214,2]
[424269407,1780714240000,-1500000.0,0.00012533,2]
[424269397,1780714240000,-255.0,0.00012188,2]
[424269406,1780714240000,-166.66,0.00012528,2]
[424269400,1780714240000,-271.62387931,0.00012375,2]
[424269393,1780714240000,-1499.36276389,0.00011983,2]
[424269399,1780714240000,-174.73297243,0.00012329,2]
[424269398,1780714240000,-214.56,0.00012329,2]
[424269404,1780714240000,-328.20866117,0.00012523,2]
[424269388,1780714240000,-20161.25263097,0.00011676,2]
[424269394,1780714240000,-20161.25263097,0.00012051,2]
[424269389,1780714240000,-6590.23087138,0.00011676,2]
[424269385,1780714240000,-1499.36276393,0.000114,2]
[424269387,1780714240000,-1000.0,0.00011505,2]
[424269386,1780714240000,-2000.0,0.00011432,2]
[424269384,1780714240000,-2221246.79856302,0.000114,2]
[424269383,1780714240000,-359.72147329,0.000114,2]
[424269382,1780714240000,-457.04884248,0.000114,2]
[424269381,1780714240000,-463.52887949,0.000114,2]
[424269380,1780714240000,-614.9631,0.000114,2]
[424269402,1780714240000,-6590.23087138,0.00012427,2]
[424269392,1780714240000,-250.0,0.0001182,2]
[424269405,1780714240000,-250.0,0.00012528,2]
[424269391,1780714240000,-43591.99003712,0.00011772,2]
[424269403,1780714240000,-1537.63,0.0001245,2]
[424269401,1780714240000,-20161.25263097,0.00012427,2]
[424269429,1780714240000,-150.0,0.00013425,2]
[424269422,1780714240000,-500.0,0.00013425,2]
[424269426,1780714240000,-350.0,0.00013425,2]
[424269419,1780714240000,-227.10726544,0.00013303,2]
[424269430,1780714240000,-150.0,0.00013425,2]
[424269421,1780714240000,-500.0,0.00013425,2]
[424269427,1780714240000,-503.8580275,0.00013425,2]
[424269424,1780714240000,-500.0,0.00013425,2]
[424269428,1780714240000,-150.0,0.00013425,2]
[424269425,1780714240000,-500.0,0.00013425,2]
[424269420,1780714240000,-166.66,0.00013304,2]
[424269423,1780714240000,-500.0,0.00013425,2]
[424269416,1780714240000,-1499.36276389,0.0001315,2]
[424269413,1780714240000,-2600.0,0.000129,4]
[424269395,1780714240000,-6590.23087138,0.00012051,2]
[424269408,1780714240000,-1499.36276389,0.00012567,2]
[424269412,1780714240000,-6590.23087138,0.00012803,2]
[424269418,1780714240000,-6590.23087138,0.00013178,2]
[424269417,1780714240000,-20161.25263097,0.00013178,2]
[424269410,1780714240000,-2000.0,0.00012702,2]
[424269411,1780714240000,-20161.25263097,0.00012803,2]
[424269414,1780714240000,-166.66,0.00012916,2]
[424269415,1780714240000,-2591.0,0.00013083,5]
[424269409,1780714240000,-298.68,0.00012602,2]
[424269470,1780714241000,-1499.36276389,0.00014317,2]
[424269468,1780714241000,-166.66,0.0001411,2]
[424269472,1780714241000,-3716.01,0.00014497,2]
[424269469,1780714241000,-166.66,0.00014247,2]
[424269467,1780714241000,-2000.0,0.00013973,2]
[424269462,1780714241000,-500.0,0.00013808,2]
[424269461,1780714241000,-1499.36276389,0.00013733,2]
[424269465,1780714241000,-200.0,0.00013939,2]
[424269460,1780714241000,-395.07574971,0.00013727,2]
[424269463,1780714241000,-166.66,0.00013836,2]
[424269473,1780714241000,-455.76,0.00014497,2]
[424269466,1780714241000,-166.66,0.00013973,2]
[424269475,1780714241000,-2000.0,0.00014514,2]
[424269487,1780714241000,-2000.0,0.00014514,2]
[424269474,1780714241000,-500.0,0.00014513,2]
[424269476,1780714241000,-2000.0,0.00014514,2]
[424269478,1780714241000,-2000.0,0.00014514,2]
[424269485,1780714241000,-2000.0,0.00014514,2]
[424269486,1780714241000,-2000.0,0.00014514,2]
[424269477,1780714241000,-2000.0,0.00014514,2]
[424269481,1780714241000,-2000.0,0.00014514,2]
[424269484,1780714241000,-2000.0,0.00014514,2]
[424269480,1780714241000,-2000.0,0.00014514,2]
[424269482,1780714241000,-2000.0,0.00014514,2]
[424269479,1780714241000,-2000.0,0.00014514,2]
[424269464,1780714241000,-20161.25263097,0.0001393,2]
[424269471,1780714241000,-166.66,0.00014384,2]
[424269458,1780714241000,-500.0,0.00013699,2]
[424269451,1780714241000,-500.0,0.00013698,2]
[424269456,1780714241000,-166.66,0.00013699,2]
[424269431,1780714241000,-150.0,0.00013425,2]
[424269434,1780714241000,-250.0,0.00013425,2]
[424269432,1780714241000,-150.0,0.00013425,2]
[424269433,1780714241000,-150.0,0.00013425,2]
[424269437,1780714241000,-271.62387931,0.00013688,2]
[424269436,1780714241000,-20161.25263097,0.00013554,2]
[424269435,1780714241000,-342.14338402,0.00013444,2]
[424269442,1780714241000,-500.0,0.00013698,2]
[424269441,1780714241000,-500.0,0.00013698,2]
[424269438,1780714241000,-166.66,0.00013692,2]
[424269440,1780714241000,-500.0,0.00013698,2]
[424269439,1780714241000,-500.0,0.00013698,2]
[424269459,1780714241000,-174.56387018,0.00013699,2]
[424269444,1780714241000,-500.0,0.00013698,2]
[424269452,1780714241000,-500.0,0.00013698,2]
[424269483,1780714241000,-2000.0,0.00014514,2]
[424269453,1780714241000,-500.0,0.00013698,2]
[424269445,1780714241000,-500.0,0.00013698,2]
[424269448,1780714241000,-500.0,0.00013698,2]
[424269446,1780714241000,-500.0,0.00013698,2]
[424269454,1780714241000,-500.0,0.00013698,2]
[424269447,1780714241000,-500.0,0.00013698,2]
[424269450,1780714241000,-500.0,0.00013698,2]
[424269449,1780714241000,-500.0,0.00013698,2]
[424269455,1780714241000,-500.0,0.00013698,2]
[424269457,1780714241000,-500.0,0.00013699,2]
[424269443,1780714241000,-500.0,0.00013698,2]
[424269489,1780714241000,-2000.0,0.00014514,2]
[424269492,1780714241000,-2000.0,0.00014514,2]
[424269491,1780714241000,-1036.22,0.00014514,2]
[424269516,1780714241000,-500.0,0.0001478,2]
[424269518,1780714241000,-500.0,0.0001478,2]
[424269521,1780714241000,-500.0,0.0001478,2]
[424269526,1780714241000,-500.0,0.0001478,2]